[Event "December 19 Late 2023"]
[Site "https://www.chess.com"]
[Date "2023.12.19"]
[Round "5"]
[White "Gubajdullin, Alexei"]
[Black "Novak, Ratko"]
[Result "1-0"]
[Board "56"]
[TimeControl "180+1"]
[WhiteFideId "4141202"]
[BlackFideId "14511827"]
[WhiteElo "2274"]
[BlackElo "2036"]
[WhiteTeam "RUS"]
[BlackTeam "CRO"]
[WhiteClock "0:00:23"]
[BlackClock "0:00:11"]

1. e4 {[%clk 0:02:59]}  d5 {[%clk 0:03:00]} 2. exd5 {[%clk 0:02:55]}  c6 {[%clk 0:03:00]} 3. dxc6 {[%clk 0:02:52]}  Nxc6 {[%clk 0:03:01]} 4. Nf3 {[%clk 0:02:48]}  e5 {[%clk 0:03:01]} 5. d3 {[%clk 0:02:41]}  Bc5 {[%clk 0:03:00]} 6. Be2 {[%clk 0:02:39]}  f5 {[%clk 0:02:58]} 7. O-O {[%clk 0:02:37]}  Nf6 {[%clk 0:02:58]} 8. Bg5 {[%clk 0:02:33]}  O-O {[%clk 0:02:57]} 9. Nc3 {[%clk 0:02:32]}  Be6 {[%clk 0:02:57]} 10. Qd2 {[%clk 0:02:19]}  Qe7 {[%clk 0:02:43]} 11. Rae1 {[%clk 0:02:17]}  Rad8 {[%clk 0:02:41]} 12. Qc1 {[%clk 0:02:13]}  h6 {[%clk 0:02:39]} 13. Be3 {[%clk 0:02:06]}  Bb4 {[%clk 0:02:38]} 14. a3 {[%clk 0:02:04]}  Bxc3 {[%clk 0:02:36]} 15. bxc3 {[%clk 0:02:04]}  f4 {[%clk 0:02:35]} 16. Bd2 {[%clk 0:02:02]}  g5 {[%clk 0:02:34]} 17. Bd1 {[%clk 0:01:59]}  Qc5 {[%clk 0:02:33]} 18. d4 {[%clk 0:01:58]}  exd4 {[%clk 0:02:22]} 19. Rxe6 {[%clk 0:01:56]}  dxc3 {[%clk 0:02:22]} 20. Be1 {[%clk 0:01:42]}  Qd5 {[%clk 0:02:09]} 21. Rxf6 {[%clk 0:01:41]}  Rxf6 {[%clk 0:02:06]} 22. Bxc3 {[%clk 0:01:37]}  Re6 {[%clk 0:01:56]} 23. Ba1 {[%clk 0:01:36]}  Qc4 {[%clk 0:01:47]} 24. g3 {[%clk 0:01:15]}  g4 {[%clk 0:01:24]} 25. Qb2 {[%clk 0:01:14]}  Qxf1+ {[%clk 0:01:24]} 26. Kxf1 {[%clk 0:01:12]}  Rxd1+ {[%clk 0:01:24]} 27. Kg2 {[%clk 0:01:11]}  gxf3+ {[%clk 0:01:25]} 28. Kxf3 {[%clk 0:01:11]}  Nd4+ {[%clk 0:01:12]} 29. Kxf4 {[%clk 0:01:04]}  Ree1 {[%clk 0:01:05]} 30. Kg4 {[%clk 0:00:51]}  b6 {[%clk 0:00:30]} 31. f4 {[%clk 0:00:46]}  h5+ {[%clk 0:00:25]} 32. Kxh5 {[%clk 0:00:43]}  Re2 {[%clk 0:00:20]} 33. Qa2+ {[%clk 0:00:36]}  Kh7 {[%clk 0:00:17]} 34. Qf7+ {[%clk 0:00:30]}  Kh8 {[%clk 0:00:17]} 35. Qf6+ {[%clk 0:00:29]}  Kh7 {[%clk 0:00:17]} 36. Bxd4 {[%clk 0:00:23]}  Rxh2+ {[%clk 0:00:11]} 37. Kg4 {[%clk 0:00:23]} 1-0

[Event "December 19 Late 2023"]
[Site "https://www.chess.com"]
[Date "2023.12.19"]
[Round "5"]
[White "Szyszylo, Rafal"]
[Black "Womacka, Mathias"]
[Result "0-1"]
[Board "59"]
[TimeControl "180+1"]
[WhiteFideId "1109626"]
[BlackFideId "4611390"]
[WhiteElo "1951"]
[BlackElo "2376"]
[WhiteTeam "POL"]
[BlackTeam "GER"]
[WhiteClock "0:00:00"]
[BlackClock "0:00:06"]

1. e4 {[%clk 0:02:56]}  c5 {[%clk 0:03:00]} 2. Nc3 {[%clk 0:02:56]}  Nc6 {[%clk 0:02:59]} 3. Bb5 {[%clk 0:02:55]}  Nd4 {[%clk 0:02:58]} 4. Nf3 {[%clk 0:02:56]}  Nxb5 {[%clk 0:02:57]} 5. Nxb5 {[%clk 0:02:57]}  d6 {[%clk 0:02:55]} 6. d4 {[%clk 0:02:55]}  Nf6 {[%clk 0:02:53]} 7. Nc3 {[%clk 0:02:45]}  cxd4 {[%clk 0:02:48]} 8. Qxd4 {[%clk 0:02:46]}  e5 {[%clk 0:02:46]} 9. Qd3 {[%clk 0:02:46]}  h6 {[%clk 0:02:46]} 10. Nd2 {[%clk 0:02:46]}  Be6 {[%clk 0:02:40]} 11. Nc4 {[%clk 0:02:46]}  Be7 {[%clk 0:02:30]} 12. Ne3 {[%clk 0:02:44]}  O-O {[%clk 0:02:28]} 13. O-O {[%clk 0:02:45]}  a6 {[%clk 0:02:25]} 14. a4 {[%clk 0:02:44]}  Rc8 {[%clk 0:02:24]} 15. Rd1 {[%clk 0:02:44]}  Qb6 {[%clk 0:02:03]} 16. Bd2 {[%clk 0:02:30]}  Qd4 {[%clk 0:02:00]} 17. Be1 {[%clk 0:02:28]}  Qxd3 {[%clk 0:01:55]} 18. Rxd3 {[%clk 0:02:25]}  Rc6 {[%clk 0:01:53]} 19. a5 {[%clk 0:01:42]}  Rfc8 {[%clk 0:01:50]} 20. Ra4 {[%clk 0:01:38]}  g6 {[%clk 0:01:37]} 21. h3 {[%clk 0:01:36]}  h5 {[%clk 0:01:31]} 22. Kf1 {[%clk 0:01:27]}  Kg7 {[%clk 0:01:26]} 23. Ke2 {[%clk 0:01:27]}  Bd8 {[%clk 0:01:19]} 24. Kd1 {[%clk 0:01:12]}  Rc5 {[%clk 0:01:02]} 25. b4 {[%clk 0:00:55]}  R5c6 {[%clk 0:00:45]} 26. Ra3 {[%clk 0:00:47]}  Be7 {[%clk 0:00:44]} 27. Ra4 {[%clk 0:00:45]}  h4 {[%clk 0:00:25]} 28. Kc1 {[%clk 0:00:39]}  Nh5 {[%clk 0:00:21]} 29. Kb2 {[%clk 0:00:32]}  f5 {[%clk 0:00:16]} 30. f3 {[%clk 0:00:31]}  Nf4 {[%clk 0:00:15]} 31. Rd1 {[%clk 0:00:30]}  Kf7 {[%clk 0:00:14]} 32. Ned5 {[%clk 0:00:16]}  Nxg2 {[%clk 0:00:11]} 33. Nxe7 {[%clk 0:00:13]}  Kxe7 {[%clk 0:00:11]} 34. Bd2 {[%clk 0:00:08]}  Kf6 {[%clk 0:00:09]} 35. Ra3 {[%clk 0:00:07]}  Nf4 {[%clk 0:00:08]} 36. Be1 {[%clk 0:00:03]}  g5 {[%clk 0:00:06]} 37. exf5 {[%clk 0:00:02]}  Bxf5 {[%clk 0:00:06]} 38. Nd5+ {[%clk 0:00:02]}  Kf7 {[%clk 0:00:06]} 39. c4 {[%clk 0:00:00]}  Be6 {[%clk 0:00:06]} 0-1

[Event "December 19 Late 2023"]
[Site "https://www.chess.com"]
[Date "2023.12.19"]
[Round "5"]
[White "Tifferet, Shakked"]
[Black "Fernandez Diaz, Cristian"]
[Result "0-1"]
[Board "60"]
[TimeControl "180+1"]
[WhiteFideId "2811529"]
[BlackFideId "22256687"]
[WhiteElo "2142"]
[BlackElo "2170"]
[WhiteTeam "ISR"]
[BlackTeam "ESP"]
[WhiteClock "0:00:12"]
[BlackClock "0:00:17"]

1. e4 {[%clk 0:03:00]}  c5 {[%clk 0:02:58]} 2. Nf3 {[%clk 0:02:59]}  Nc6 {[%clk 0:02:58]} 3. Nc3 {[%clk 0:02:59]}  g6 {[%clk 0:02:56]} 4. h4 {[%clk 0:02:57]}  Nf6 {[%clk 0:02:45]} 5. Bc4 {[%clk 0:02:47]}  Bg7 {[%clk 0:02:40]} 6. e5 {[%clk 0:02:43]}  Ng4 {[%clk 0:02:23]} 7. Bxf7+ {[%clk 0:02:41]}  Kxf7 {[%clk 0:02:23]} 8. Ng5+ {[%clk 0:02:41]}  Ke8 {[%clk 0:02:24]} 9. Qxg4 {[%clk 0:02:41]}  Nxe5 {[%clk 0:02:14]} 10. Qe2 {[%clk 0:02:38]}  d6 {[%clk 0:02:11]} 11. h5 {[%clk 0:02:30]}  h6 {[%clk 0:02:05]} 12. Nge4 {[%clk 0:02:15]}  g5 {[%clk 0:02:03]} 13. d3 {[%clk 0:02:13]}  Nc6 {[%clk 0:01:56]} 14. Be3 {[%clk 0:02:08]}  d5 {[%clk 0:01:47]} 15. Bxc5 {[%clk 0:01:50]}  dxe4 {[%clk 0:01:45]} 16. Qxe4 {[%clk 0:01:51]}  Rf8 {[%clk 0:01:27]} 17. O-O {[%clk 0:01:33]}  Bf5 {[%clk 0:01:23]} 18. Qa4 {[%clk 0:01:31]}  Qd7 {[%clk 0:01:21]} 19. Rfe1 {[%clk 0:01:29]}  Rf7 {[%clk 0:01:14]} 20. Nb5 {[%clk 0:01:28]}  Kf8 {[%clk 0:01:11]} 21. Qc4 {[%clk 0:01:23]}  Kg8 {[%clk 0:01:06]} 22. Re3 {[%clk 0:01:23]}  Ne5 {[%clk 0:00:56]} 23. Qb3 {[%clk 0:01:17]}  Be6 {[%clk 0:00:51]} 24. Qb4 {[%clk 0:01:13]}  a5 {[%clk 0:00:45]} 25. Qa4 {[%clk 0:01:08]}  Bd5 {[%clk 0:00:38]} 26. Rae1 {[%clk 0:01:05]}  Qf5 {[%clk 0:00:31]} 27. R3e2 {[%clk 0:00:50]}  Raf8 {[%clk 0:00:31]} 28. Nd4 {[%clk 0:00:48]}  Qg4 {[%clk 0:00:28]} 29. Re4 {[%clk 0:00:28]}  Bxe4 {[%clk 0:00:25]} 30. Rxe4 {[%clk 0:00:28]}  Rxf2 {[%clk 0:00:13]} 31. Rxg4 {[%clk 0:00:18]}  Rf1+ {[%clk 0:00:13]} 32. Kh2 {[%clk 0:00:19]}  Nxg4+ {[%clk 0:00:13]} 33. Kg3 {[%clk 0:00:17]}  Be5+ {[%clk 0:00:13]} 34. Kxg4 {[%clk 0:00:11]}  R8f4+ {[%clk 0:00:14]} 35. Kg3 {[%clk 0:00:10]}  Rxd4+ {[%clk 0:00:14]} 36. Kh3 {[%clk 0:00:08]}  Rxa4 {[%clk 0:00:14]} 37. d4 {[%clk 0:00:08]}  Bxd4 {[%clk 0:00:14]} 38. b3 {[%clk 0:00:08]}  Bxc5 {[%clk 0:00:14]} 39. bxa4 {[%clk 0:00:09]}  Rf2 {[%clk 0:00:12]} 40. a3 {[%clk 0:00:10]}  Rxc2 {[%clk 0:00:12]} 41. g3 {[%clk 0:00:08]}  Rc3 {[%clk 0:00:12]} 42. Kg4 {[%clk 0:00:08]}  Rxa3 {[%clk 0:00:13]} 43. Kf5 {[%clk 0:00:08]}  Rxa4 {[%clk 0:00:14]} 44. g4 {[%clk 0:00:09]}  Rb4 {[%clk 0:00:14]} 45. Kg6 {[%clk 0:00:10]}  a4 {[%clk 0:00:15]} 46. Kf5 {[%clk 0:00:11]}  a3 {[%clk 0:00:16]} 47. Kg6 {[%clk 0:00:11]}  a2 {[%clk 0:00:17]} 48. Kxh6 {[%clk 0:00:12]}  a1=Q {[%clk 0:00:17]} 49. Kg6 {[%clk 0:00:12]}  Qf6# {[%clk 0:00:17]} 0-1

[Event "December 19 Late 2023"]
[Site "https://www.chess.com"]
[Date "2023.12.19"]
[Round "5"]
[White "Perea Fruet, Lorenzo"]
[Black "Liascovich, Lucas"]
[Result "0-1"]
[Board "63"]
[TimeControl "180+1"]
[WhiteFideId "24595870"]
[BlackFideId "108634"]
[WhiteElo "2268"]
[BlackElo "2455"]
[WhiteTeam "ESP"]
[BlackTeam "ARG"]
[WhiteClock "0:00:00"]
[BlackClock "0:01:24"]

1. f4 {[%clk 0:02:25]}  d5 {[%clk 0:02:58]} 2. Nf3 {[%clk 0:02:23]}  Nf6 {[%clk 0:02:59]} 3. g3 {[%clk 0:02:22]}  g6 {[%clk 0:03:00]} 4. Bg2 {[%clk 0:02:23]}  Bg7 {[%clk 0:03:00]} 5. O-O {[%clk 0:02:23]}  c5 {[%clk 0:02:56]} 6. d3 {[%clk 0:02:24]}  O-O {[%clk 0:02:55]} 7. h3 {[%clk 0:02:25]}  Nc6 {[%clk 0:02:52]} 8. Nbd2 {[%clk 0:02:25]}  b5 {[%clk 0:02:49]} 9. e4 {[%clk 0:02:25]}  dxe4 {[%clk 0:02:48]} 10. dxe4 {[%clk 0:02:26]}  Bb7 {[%clk 0:02:44]} 11. e5 {[%clk 0:02:24]}  Nd5 {[%clk 0:02:43]} 12. Ne4 {[%clk 0:02:25]}  Qb6 {[%clk 0:02:41]} 13. Kh2 {[%clk 0:02:25]}  Rad8 {[%clk 0:02:39]} 14. Qe2 {[%clk 0:02:25]}  Nd4 {[%clk 0:02:37]} 15. Nxd4 {[%clk 0:02:24]}  cxd4 {[%clk 0:02:37]} 16. h4 {[%clk 0:02:01]}  h5 {[%clk 0:02:32]} 17. Ng5 {[%clk 0:01:46]}  Ne3 {[%clk 0:02:29]} 18. Bxe3 {[%clk 0:01:43]}  dxe3 {[%clk 0:02:30]} 19. Rad1 {[%clk 0:01:37]}  b4 {[%clk 0:02:24]} 20. Bxb7 {[%clk 0:01:34]}  Qxb7 {[%clk 0:02:25]} 21. Qxe3 {[%clk 0:01:31]}  Qa6 {[%clk 0:02:24]} 22. Rfe1 {[%clk 0:01:21]}  Qxa2 {[%clk 0:02:22]} 23. Qb3 {[%clk 0:00:56]}  Qa5 {[%clk 0:02:18]} 24. f5 {[%clk 0:00:23]}  gxf5 {[%clk 0:02:11]} 25. Qf3 {[%clk 0:00:15]}  Qa6 {[%clk 0:02:05]} 26. e6 {[%clk 0:00:13]}  f6 {[%clk 0:02:05]} 27. Nf7 {[%clk 0:00:10]}  Rxd1 {[%clk 0:02:02]} 28. Qxd1 {[%clk 0:00:09]}  f4 {[%clk 0:01:57]} 29. Qxh5 {[%clk 0:00:08]}  fxg3+ {[%clk 0:01:55]} 30. Kh3 {[%clk 0:00:08]}  Qc4 {[%clk 0:01:50]} 31. Qg6 {[%clk 0:00:07]}  Qf4 {[%clk 0:01:47]} 32. h5 {[%clk 0:00:06]}  f5 {[%clk 0:01:39]} 33. h6 {[%clk 0:00:06]}  Qg4+ {[%clk 0:01:40]} 34. Qxg4 {[%clk 0:00:05]}  fxg4+ {[%clk 0:01:40]} 35. Kxg4 {[%clk 0:00:06]}  Bxb2 {[%clk 0:01:41]} 36. Kxg3 {[%clk 0:00:04]}  Bf6 {[%clk 0:01:38]} 37. Kf4 {[%clk 0:00:02]}  a5 {[%clk 0:01:32]} 38. Rd1 {[%clk 0:00:01]}  a4 {[%clk 0:01:31]} 39. Rd5 {[%clk 0:00:01]}  Ra8 {[%clk 0:01:26]} 40. Kf5 {[%clk 0:00:00]}  Kh7 {[%clk 0:01:24]} 0-1

[Event "December 19 Late 2023"]
[Site "https://www.chess.com"]
[Date "2023.12.19"]
[Round "5"]
[White "Gabuzyan, Hovhannes"]
[Black "Cervantes Landeiro, Thalia"]
[Result "1-0"]
[Board "64"]
[TimeControl "180+1"]
[WhiteFideId "13303732"]
[BlackFideId "3520498"]
[WhiteElo "2486"]
[BlackElo "2189"]
[WhiteTeam "ARM"]
[BlackTeam "USA"]
[WhiteClock "0:01:18"]
[BlackClock "0:00:00"]

1. e4 {[%clk 0:02:57]}  c5 {[%clk 0:02:59]} 2. Nc3 {[%clk 0:02:57]}  d6 {[%clk 0:02:59]} 3. d4 {[%clk 0:02:53]}  cxd4 {[%clk 0:03:00]} 4. Qxd4 {[%clk 0:02:53]}  Nc6 {[%clk 0:02:59]} 5. Qd2 {[%clk 0:02:53]}  g6 {[%clk 0:03:00]} 6. b3 {[%clk 0:02:53]}  Bg7 {[%clk 0:03:00]} 7. Bb2 {[%clk 0:02:54]}  Nf6 {[%clk 0:02:59]} 8. O-O-O {[%clk 0:02:54]}  O-O {[%clk 0:03:00]} 9. f4 {[%clk 0:02:51]}  Qa5 {[%clk 0:03:00]} 10. Kb1 {[%clk 0:02:47]}  Bd7 {[%clk 0:02:49]} 11. Nge2 {[%clk 0:02:44]}  b5 {[%clk 0:02:38]} 12. Nd4 {[%clk 0:02:41]}  b4 {[%clk 0:02:20]} 13. Nd5 {[%clk 0:02:32]}  Nxe4 {[%clk 0:02:18]} 14. Qe1 {[%clk 0:02:18]}  Qxd5 {[%clk 0:01:51]} 15. Bc4 {[%clk 0:02:17]}  Qc5 {[%clk 0:01:20]} 16. Qxe4 {[%clk 0:02:17]}  Nxd4 {[%clk 0:01:17]} 17. Bxd4 {[%clk 0:02:18]}  Bxd4 {[%clk 0:01:15]} 18. Rxd4 {[%clk 0:02:18]}  Bf5 {[%clk 0:01:04]} 19. Qe3 {[%clk 0:02:18]}  Rac8 {[%clk 0:00:49]} 20. Re1 {[%clk 0:02:16]}  e6 {[%clk 0:00:42]} 21. h3 {[%clk 0:02:13]}  d5 {[%clk 0:00:42]} 22. Bd3 {[%clk 0:02:13]}  Bxd3 {[%clk 0:00:38]} 23. Qxd3 {[%clk 0:02:14]}  a5 {[%clk 0:00:38]} 24. g4 {[%clk 0:02:13]}  a4 {[%clk 0:00:34]} 25. f5 {[%clk 0:02:13]}  axb3 {[%clk 0:00:34]} 26. cxb3 {[%clk 0:02:07]}  exf5 {[%clk 0:00:26]} 27. gxf5 {[%clk 0:02:07]}  Rfe8 {[%clk 0:00:25]} 28. Rd1 {[%clk 0:02:06]}  Ra8 {[%clk 0:00:13]} 29. Qd2 {[%clk 0:01:54]}  Qc7 {[%clk 0:00:02]} 30. f6 {[%clk 0:01:48]}  Qb6 {[%clk 0:00:02]} 31. Rf4 {[%clk 0:01:44]}  Rad8 {[%clk 0:00:01]} 32. Rf3 {[%clk 0:01:42]}  Re6 {[%clk 0:00:01]} 33. Rdf1 {[%clk 0:01:38]}  Rde8 {[%clk 0:00:02]} 34. R3f2 {[%clk 0:01:26]}  d4 {[%clk 0:00:00]} 35. Qh6 {[%clk 0:01:18]} 1-0

[Event "December 19 Late 2023"]
[Site "https://www.chess.com"]
[Date "2023.12.19"]
[Round "5"]
[White "Hasanagic, Anel"]
[Black "Adewumi, Tanitoluwa"]
[Result "1/2-1/2"]
[Board "65"]
[TimeControl "180+1"]
[WhiteFideId "14605791"]
[BlackFideId "30966396"]
[WhiteElo "2209"]
[BlackElo "2325"]
[WhiteTeam "SLO"]
[BlackTeam "USA"]
[WhiteClock "0:00:10"]
[BlackClock "0:00:03"]

1. Nf3 {[%clk 0:03:00]}  Nf6 {[%clk 0:02:54]} 2. b3 {[%clk 0:02:59]}  g6 {[%clk 0:02:54]} 3. Bb2 {[%clk 0:02:59]}  Bg7 {[%clk 0:02:54]} 4. g3 {[%clk 0:03:00]}  O-O {[%clk 0:02:54]} 5. Bg2 {[%clk 0:03:00]}  d6 {[%clk 0:02:55]} 6. O-O {[%clk 0:03:01]}  Nc6 {[%clk 0:02:55]} 7. d3 {[%clk 0:03:01]}  e5 {[%clk 0:02:56]} 8. Nbd2 {[%clk 0:03:01]}  Re8 {[%clk 0:02:57]} 9. Re1 {[%clk 0:03:00]}  a5 {[%clk 0:02:55]} 10. a4 {[%clk 0:03:00]}  h6 {[%clk 0:02:54]} 11. h3 {[%clk 0:03:00]}  Be6 {[%clk 0:02:54]} 12. e4 {[%clk 0:02:52]}  Nd7 {[%clk 0:02:54]} 13. Nc4 {[%clk 0:02:51]}  Nc5 {[%clk 0:02:53]} 14. Ne3 {[%clk 0:02:49]}  Nd4 {[%clk 0:02:43]} 15. Nxd4 {[%clk 0:02:49]}  exd4 {[%clk 0:02:43]} 16. Nf1 {[%clk 0:02:50]}  Qd7 {[%clk 0:02:39]} 17. Kh2 {[%clk 0:02:47]}  c6 {[%clk 0:02:39]} 18. f4 {[%clk 0:02:46]}  f5 {[%clk 0:02:38]} 19. exf5 {[%clk 0:02:41]}  Bxf5 {[%clk 0:02:39]} 20. g4 {[%clk 0:02:38]}  Rxe1 {[%clk 0:02:19]} 21. Qxe1 {[%clk 0:02:37]}  Bxd3 {[%clk 0:02:18]} 22. cxd3 {[%clk 0:02:34]}  Nxd3 {[%clk 0:02:19]} 23. Qd2 {[%clk 0:02:33]}  Nxb2 {[%clk 0:02:16]} 24. Qxb2 {[%clk 0:02:34]}  d3 {[%clk 0:02:16]} 25. Qc1 {[%clk 0:02:35]}  Bxa1 {[%clk 0:02:08]} 26. Qxa1 {[%clk 0:02:35]}  Qf7 {[%clk 0:01:51]} 27. Qd4 {[%clk 0:02:33]}  Rf8 {[%clk 0:01:51]} 28. Qxd3 {[%clk 0:02:32]}  Qxf4+ {[%clk 0:01:51]} 29. Ng3 {[%clk 0:02:32]}  Kg7 {[%clk 0:01:47]} 30. Qc3+ {[%clk 0:02:32]}  Rf6 {[%clk 0:01:37]} 31. Qxa5 {[%clk 0:02:22]}  d5 {[%clk 0:01:32]} 32. Qc3 {[%clk 0:02:18]}  d4 {[%clk 0:01:26]} 33. Qd3 {[%clk 0:02:18]}  Re6 {[%clk 0:01:21]} 34. Be4 {[%clk 0:01:36]}  Qf2+ {[%clk 0:01:10]} 35. Kh1 {[%clk 0:01:30]}  Qe1+ {[%clk 0:00:56]} 36. Kg2 {[%clk 0:01:26]}  Qc3 {[%clk 0:00:21]} 37. Kf2 {[%clk 0:00:53]}  Rf6+ {[%clk 0:00:16]} 38. Kg2 {[%clk 0:00:52]}  Re6 {[%clk 0:00:14]} 39. Kf2 {[%clk 0:00:48]}  Qb2+ {[%clk 0:00:12]} 40. Ne2 {[%clk 0:00:44]}  c5 {[%clk 0:00:12]} 41. Kf3 {[%clk 0:00:41]}  Rf6+ {[%clk 0:00:12]} 42. Kg3 {[%clk 0:00:40]}  Qa1 {[%clk 0:00:10]} 43. Bf3 {[%clk 0:00:27]}  Qf1 {[%clk 0:00:07]} 44. Qe4 {[%clk 0:00:23]}  Rf7 {[%clk 0:00:04]} 45. Nf4 {[%clk 0:00:17]}  Qg1+ {[%clk 0:00:03]} 46. Bg2 {[%clk 0:00:16]}  Qe3+ {[%clk 0:00:02]} 47. Qxe3 {[%clk 0:00:16]}  dxe3 {[%clk 0:00:03]} 48. Bf3 {[%clk 0:00:15]}  g5 {[%clk 0:00:03]} 49. Ne6+ {[%clk 0:00:15]}  Kf6 {[%clk 0:00:03]} 50. Nxc5 {[%clk 0:00:15]}  Ke5 {[%clk 0:00:03]} 51. Nxb7 {[%clk 0:00:13]}  Kd4 {[%clk 0:00:03]} 52. a5 {[%clk 0:00:13]}  Kd3 {[%clk 0:00:02]} 53. Nc5+ {[%clk 0:00:13]}  Kd2 {[%clk 0:00:01]} 54. Ne4+ {[%clk 0:00:13]}  Kd3 {[%clk 0:00:02]} 55. a6 {[%clk 0:00:12]}  e2 {[%clk 0:00:01]} 56. Nf2+ {[%clk 0:00:12]}  Ke3 {[%clk 0:00:01]} 57. Bxe2 {[%clk 0:00:12]}  Kxe2 {[%clk 0:00:02]} 58. Ne4 {[%clk 0:00:12]}  Rf3+ {[%clk 0:00:02]} 59. Kg2 {[%clk 0:00:12]}  Rxb3 {[%clk 0:00:03]} 60. Nf6 {[%clk 0:00:12]}  Ke3 {[%clk 0:00:03]} 61. a7 {[%clk 0:00:11]}  Ra3 {[%clk 0:00:03]} 62. Ng8 {[%clk 0:00:10]}  Rxa7 {[%clk 0:00:02]} 63. Nxh6 {[%clk 0:00:11]}  Kf4 {[%clk 0:00:02]} 64. Nf5 {[%clk 0:00:11]}  Ra2+ {[%clk 0:00:03]} 65. Kg1 {[%clk 0:00:11]}  Kf3 {[%clk 0:00:03]} 66. Kh1 {[%clk 0:00:11]}  Kf2 {[%clk 0:00:02]} 67. Kh2 {[%clk 0:00:11]}  Kf3+ {[%clk 0:00:03]} 68. Kh1 {[%clk 0:00:11]}  Rb2 {[%clk 0:00:03]} 69. Kg1 {[%clk 0:00:11]}  Rg2+ {[%clk 0:00:02]} 70. Kh1 {[%clk 0:00:11]}  Rf2 {[%clk 0:00:02]} 71. Kg1 {[%clk 0:00:10]}  Rg2+ {[%clk 0:00:02]} 72. Kh1 {[%clk 0:00:11]}  Rg3 {[%clk 0:00:03]} 73. Kh2 {[%clk 0:00:10]}  Rg2+ {[%clk 0:00:03]} 74. Kh1 {[%clk 0:00:10]} 1/2-1/2

[Event "December 19 Late 2023"]
[Site "https://www.chess.com"]
[Date "2023.12.19"]
[Round "5"]
[White "Sahakyan, Aleks"]
[Black "Tabuenca Mendataurigoitia, Daniel"]
[Result "0-1"]
[Board "67"]
[TimeControl "180+1"]
[WhiteFideId "13316338"]
[BlackFideId "24563617"]
[WhiteElo "2292"]
[BlackElo "2130"]
[WhiteTeam "ARM"]
[BlackTeam "ESP"]
[WhiteClock "0:00:04"]
[BlackClock "0:00:07"]

1. b3 {[%clk 0:03:00]}  Nf6 {[%clk 0:02:56]} 2. Bb2 {[%clk 0:02:55]}  g6 {[%clk 0:02:56]} 3. Bxf6 {[%clk 0:02:54]}  exf6 {[%clk 0:02:56]} 4. d4 {[%clk 0:02:55]}  d5 {[%clk 0:02:51]} 5. e3 {[%clk 0:02:55]}  Bg7 {[%clk 0:02:51]} 6. Nf3 {[%clk 0:02:55]}  O-O {[%clk 0:02:51]} 7. Be2 {[%clk 0:02:55]}  f5 {[%clk 0:02:49]} 8. O-O {[%clk 0:02:55]}  b6 {[%clk 0:02:49]} 9. c4 {[%clk 0:02:55]}  c5 {[%clk 0:02:48]} 10. cxd5 {[%clk 0:02:55]}  Qxd5 {[%clk 0:02:48]} 11. Nc3 {[%clk 0:02:55]}  Qd8 {[%clk 0:02:43]} 12. Rc1 {[%clk 0:02:54]}  Nd7 {[%clk 0:02:38]} 13. Bb5 {[%clk 0:02:30]}  cxd4 {[%clk 0:02:14]} 14. Nxd4 {[%clk 0:02:29]}  Ne5 {[%clk 0:02:06]} 15. Nc6 {[%clk 0:02:24]}  Nxc6 {[%clk 0:02:01]} 16. Bxc6 {[%clk 0:02:24]}  Rb8 {[%clk 0:01:57]} 17. Nb5 {[%clk 0:02:22]}  Ba6 {[%clk 0:01:54]} 18. Qxd8 {[%clk 0:02:09]}  Rfxd8 {[%clk 0:01:52]} 19. Rfd1 {[%clk 0:02:08]}  Bxb5 {[%clk 0:01:51]} 20. Bxb5 {[%clk 0:02:08]}  Bf8 {[%clk 0:01:49]} 21. Rxd8 {[%clk 0:02:02]}  Rxd8 {[%clk 0:01:49]} 22. h4 {[%clk 0:02:02]}  Bc5 {[%clk 0:01:45]} 23. a4 {[%clk 0:01:46]}  Rd2 {[%clk 0:01:44]} 24. g3 {[%clk 0:01:39]}  a5 {[%clk 0:01:42]} 25. Bc4 {[%clk 0:01:37]}  Kg7 {[%clk 0:01:41]} 26. Re1 {[%clk 0:01:35]}  f6 {[%clk 0:01:35]} 27. Kg2 {[%clk 0:01:34]}  g5 {[%clk 0:01:32]} 28. hxg5 {[%clk 0:01:34]}  fxg5 {[%clk 0:01:33]} 29. Kf3 {[%clk 0:01:27]}  h5 {[%clk 0:01:29]} 30. Bb5 {[%clk 0:01:16]}  Kf6 {[%clk 0:01:14]} 31. Be8 {[%clk 0:01:10]}  Rd3 {[%clk 0:01:10]} 32. Rb1 {[%clk 0:01:00]}  g4+ {[%clk 0:00:47]} 33. Ke2 {[%clk 0:00:55]}  Rc3 {[%clk 0:00:41]} 34. Bxh5 {[%clk 0:00:51]}  Rc2+ {[%clk 0:00:41]} 35. Kf1 {[%clk 0:00:50]}  Ke5 {[%clk 0:00:40]} 36. Bf7 {[%clk 0:00:50]}  Rd2 {[%clk 0:00:32]} 37. Bc4 {[%clk 0:00:48]}  Kf6 {[%clk 0:00:29]} 38. Rc1 {[%clk 0:00:45]}  Ba3 {[%clk 0:00:28]} 39. Re1 {[%clk 0:00:44]}  Bc5 {[%clk 0:00:28]} 40. Kg2 {[%clk 0:00:38]}  Ke5 {[%clk 0:00:27]} 41. Kg1 {[%clk 0:00:38]}  Ke4 {[%clk 0:00:26]} 42. Bb5 {[%clk 0:00:22]}  Rb2 {[%clk 0:00:20]} 43. Bc4 {[%clk 0:00:20]}  Rd2 {[%clk 0:00:20]} 44. Kg2 {[%clk 0:00:17]}  Ke5 {[%clk 0:00:16]} 45. Kf1 {[%clk 0:00:16]}  Ke4 {[%clk 0:00:15]} 46. Rb1 {[%clk 0:00:16]}  Kf3 {[%clk 0:00:14]} 47. Kg1 {[%clk 0:00:14]}  Rxf2 {[%clk 0:00:12]} 48. Bd5+ {[%clk 0:00:13]}  Kxg3 {[%clk 0:00:12]} 49. b4 {[%clk 0:00:13]}  Bxe3 {[%clk 0:00:11]} 50. Rb3 {[%clk 0:00:12]}  f4 {[%clk 0:00:07]} 51. bxa5 {[%clk 0:00:10]}  bxa5 {[%clk 0:00:07]} 52. Bc4 {[%clk 0:00:06]}  Rc2+ {[%clk 0:00:06]} 53. Rxe3+ {[%clk 0:00:04]}  fxe3 {[%clk 0:00:07]} 0-1

[Event "December 19 Late 2023"]
[Site "https://www.chess.com"]
[Date "2023.12.19"]
[Round "5"]
[White "Sun, Rick"]
[Black "Pham, Le Thao Nguyen"]
[Result "1-0"]
[Board "69"]
[TimeControl "180+1"]
[WhiteFideId "30909481"]
[BlackFideId "12401226"]
[WhiteElo "2169"]
[BlackElo "2261"]
[WhiteTeam "USA"]
[BlackTeam "VIE"]
[WhiteClock "0:00:12"]
[BlackClock "0:00:00"]

1. d4 {[%clk 0:03:00]}  Nf6 {[%clk 0:02:53]} 2. Nc3 {[%clk 0:03:01]}  d5 {[%clk 0:02:53]} 3. Bf4 {[%clk 0:03:01]}  g6 {[%clk 0:02:50]} 4. Qd2 {[%clk 0:03:01]}  Bg7 {[%clk 0:02:50]} 5. O-O-O {[%clk 0:03:01]}  c6 {[%clk 0:02:33]} 6. h4 {[%clk 0:03:00]}  h5 {[%clk 0:02:32]} 7. f3 {[%clk 0:02:59]}  Bf5 {[%clk 0:02:25]} 8. Nh3 {[%clk 0:02:58]}  Bxh3 {[%clk 0:01:54]} 9. Rxh3 {[%clk 0:02:57]}  Nbd7 {[%clk 0:01:33]} 10. e4 {[%clk 0:02:57]}  e6 {[%clk 0:01:32]} 11. Be2 {[%clk 0:02:34]}  Nb6 {[%clk 0:01:31]} 12. Bg5 {[%clk 0:02:28]}  Qc7 {[%clk 0:01:16]} 13. e5 {[%clk 0:02:26]}  Nfd7 {[%clk 0:01:05]} 14. g4 {[%clk 0:02:26]}  a6 {[%clk 0:01:01]} 15. gxh5 {[%clk 0:02:22]}  gxh5 {[%clk 0:01:02]} 16. Rg3 {[%clk 0:02:19]}  Bf8 {[%clk 0:00:49]} 17. f4 {[%clk 0:02:11]}  c5 {[%clk 0:00:32]} 18. f5 {[%clk 0:02:10]}  cxd4 {[%clk 0:00:32]} 19. fxe6 {[%clk 0:02:10]}  fxe6 {[%clk 0:00:33]} 20. Qxd4 {[%clk 0:02:08]}  Nc5 {[%clk 0:00:26]} 21. Rf1 {[%clk 0:01:53]}  Be7 {[%clk 0:00:19]} 22. Bxe7 {[%clk 0:01:22]}  Qxe7 {[%clk 0:00:20]} 23. b4 {[%clk 0:01:22]}  Ncd7 {[%clk 0:00:19]} 24. Bxh5+ {[%clk 0:01:18]}  Kd8 {[%clk 0:00:18]} 25. Rf7 {[%clk 0:01:14]}  Qe8 {[%clk 0:00:10]} 26. Rxd7+ {[%clk 0:00:51]}  Qxd7 {[%clk 0:00:11]} 27. Qxb6+ {[%clk 0:00:51]}  Kc8 {[%clk 0:00:07]} 28. Ne4 {[%clk 0:00:36]}  Kb8 {[%clk 0:00:03]} 29. Nc5 {[%clk 0:00:23]}  Qc6 {[%clk 0:00:01]} 30. Qxc6 {[%clk 0:00:13]}  bxc6 {[%clk 0:00:00]} 31. Rg5 {[%clk 0:00:12]} 1-0